Cogmind - Beta 9.3 @@@ ROGUE MODE // 2019.12.17 @ 19:15:34 // Winter2019/RPGLIKE Player: Terminus Result: Self-destructed Performance ------------- Evolutions (1) 500 Regions Visited (5) 1000 Robots Destroyed (74) 370 Value Destroyed (1766) 1766 Prototype IDs (4) 80 Alien Tech Used (0) 0 Bonus (108) 108 TOTAL SCORE: 3824 Bonus ------- High Alert Combat Kills 108 Cogmind --------- Core Integrity 700/700 Matter 300/300 Energy 380/380 System Corruption 0% Temperature Cool (0) Movement Flying (29) Location -9/Exiles Parts ------- > --- POWER (1) -------- Heavy Ion Engine > --- PROPULSION (3) --- Improved Flight Unit Improved Flight Unit Improved Flight Unit > --- UTILITY (6) ------ Cooling System Cooling System Improved Signal Interpreter Advanced Targeting Computer Advanced Targeting Computer > --- WEAPON (3) ------- EM Shotgun EM Shotgun Improved EM Shotgun > --- INVENTORY (4) ---- Protomatter-52 Protomatter-48 Rocket Launcher Chainsword Peak State ------------ > --- POWER ------------ Heavy Ion Engine > --- PROPULSION ------- Improved Flight Unit Improved Flight Unit Improved Flight Unit > --- UTILITY ---------- Improved Heat Sink Cooling System Improved Targeting Computer Advanced Targeting Computer Advanced Targeting Computer > --- WEAPON ----------- Heavy EM Pulse Gun Heavy EM Pulse Gun Improved EM Shotgun > --- INVENTORY -------- Rocket Launcher Plasma Cutter Axe [Rating: 32] Favorites ----------- Power Heavy Ion Engine Engine Heavy Ion Engine Propulsion Improved Flight Unit Flight Unit Improved Flight Unit Utility Improved Targeting Computer Device Cooling System Processor Improved Targeting Computer Weapon Heavy EM Pulse Gun Energy Gun Heavy EM Pulse Gun Ballistic Gun Assault Rifle Launcher Rocket Launcher Build | -11 -10 -10 -9 -9 -9 ------- Run | Scr Mat Min Mat Min Exi Slots Evolved 9 | 4 1 . 3 1 . Power . | . . . . . . Propulsion 2 | 1 . . 1 . . Utility 5 | 2 1 . 1 1 . Weapon 2 | 1 . . 1 . . Parts Attached 33 | 3 9 . 21 . . Power 5 | 1 . . 4 . . Engine 5 | 1 . . 4 . . Core . | . . . . . . Reactor . | . . . . . . Propulsion 5 | . 2 . 3 . . Treads . | . . . . . . Leg . | . . . . . . Wheel . | . . . . . . Hover . | . . . . . . Flight 5 | . 2 . 3 . . Utility 10 | . 5 . 5 . . Device 4 | . 2 . 2 . . Storage . | . . . . . . Processor 6 | . 3 . 3 . . Hackware . | . . . . . . Protection . | . . . . . . Artifact . | . . . . . . Weapon 13 | 2 2 . 9 . . Energy Gun 10 | 1 2 . 7 . . Energy Cannon . | . . . . . . Ballistic Gun 1 | 1 . . . . . Ballistic Cannon . | . . . . . . Launcher 2 | . . . 2 . . Special Weapon . | . . . . . . Impact Weapon . | . . . . . . Slashing Weapon . | . . . . . . Piercing Weapon . | . . . . . . Special Melee Weapon . | . . . . . . Unidentified Prototypes 4 | . . . 4 . . Parts Lost . | . . . . . . Power . | . . . . . . Propulsion . | . . . . . . Utility . | . . . . . . Weapon . | . . . . . . Highest Loss Streak . | . . . . . . Average Slot Usage (%) 91 | . 88 100 91 92 92 Engine 9 | . 11 11 8 7 7 Flight 22 | . 18 22 23 23 23 Device 9 | . 3 11 10 15 15 Processor 27 | . 30 33 25 23 23 Energy Gun 22 | . 21 22 23 23 23 Naked Turns . | . . . . . . Heaviest Build 21 | 7 10 10 21 21 21 Greatest Support 28 | 13 18 18 28 28 28 Greatest Overweight (x) . | . . . . . . Average Overweight (x) . | . . . . . . Largest Inventory Capacity 4 | 1 1 1 4 4 4 Average Capacity 2 | 1 1 1 2 4 4 Most Carried 4 | . 1 1 4 4 4 Average Carried 1 | . . 1 2 4 4 Final Capacity 4 | 1 1 1 4 4 4 Final Carried 4 | . 1 1 4 4 4 Class Distribution -------------------- 53% | Sprinter 44% | Mutant Dominant Class ---------------- Mutant | -10/Materials Mutant | -10/Mines Sprinter | -9/Materials Sprinter | -9/Mines Sprinter | -9/Exiles Resources | -11 -10 -10 -9 -9 -9 ----------- Run | Scr Mat Min Mat Min Exi Matter Collected 569 | 224 102 . 243 . . Remotely . | . . . . . . Salvage Created 2390 | . 709 49 1528 104 . Parts 152 | . 40 5 99 8 . Haulers Intercepted 8 | . 2 . 6 . . Recyclers Shooed 1 | . 1 . . . . Parts Field Recycled . | . . . . . . Retrieved Matter . | . . . . . . Parts Self-Destructed . | . . . . . . Prevented . | . . . . . . Kills | -11 -10 -10 -9 -9 -9 ------- Run | Scr Mat Min Mat Min Exi Combat Hostiles Destroyed 50 | . 14 2 29 5 . Guns 39 | . 14 2 20 3 . AOE 10 | . . . 8 2 . Classes Destroyed 10 | . 6 1 2 1 . Worker 3 | . . . 3 . . Tunneler 1 | . . 1 . . . Hauler 8 | . 2 . 6 . . Recycler 2 | . 1 . 1 . . Operator 2 | . 1 . 1 . . Watcher 8 | . 3 . 5 . . Swarmer 15 | . 6 2 7 . . Grunt 24 | . 8 . 12 4 . Duelist 1 | . . . . 1 . Sentry 10 | . . . 10 . . Best Kill Streak 15 | . 7 3 15 3 . Combat Bots Only 7 | . 4 2 7 3 . Max Kills in Single Turn 3 | . 2 2 3 2 . Gunslinging 1 | . 1 . . . . Exploded 3 | . . . 3 2 . Melee . | . . . . . . Uniques/NPCs Destroyed . | . . . . . . Combat | -11 -10 -10 -9 -9 -9 -------- Run | Scr Mat Min Mat Min Exi Damage Taken 1262 | . 279 455 480 48 . Core 1033 | . 238 370 388 37 . Absorbed by Shields . | . . . . . . Redirected to Core 772 | . 142 275 318 37 . Core Remaining (%) 73 | 100 . 46 . . . Volleys Fired 124 | . 42 6 66 10 . Largest 3 | . 2 2 3 3 . Hottest 135 | . 90 90 135 135 . Shots Fired 294 | . 84 12 168 30 . Gun 291 | . 84 12 165 30 . Cannon . | . . . . . . Launcher 3 | . . . 3 . . Special . | . . . . . . Kinetic 2 | . 2 . . . . Thermal 2 | . 2 . . . . Explosive 3 | . . . 3 . . Electromagnetic 287 | . 80 12 165 30 . Robot Hit Streak 37 | . 11 8 37 11 . Robot Miss Streak 3 | . 2 3 2 2 . Penetration Max . | . . . . . . Secondary Targets 8 | . 4 1 2 1 . Max Gunslinging Chain 1 | . 1 1 1 1 . Shots Hit Robots 204 | . 41 7 127 29 . Core Hits 107 | . 23 4 66 14 . Critical Hits 1 | . . . . 1 . Critical Kills . | . . . . . . Critical Parts Destroyed 1 | . . . . 1 . Melee Attacks . | . . . . . . Impact . | . . . . . . Slashing . | . . . . . . Piercing . | . . . . . . Sneak Attacks . | . . . . . . Combat Hostiles . | . . . . . . Follow-up Attacks . | . . . . . . Damage Inflicted 3981 | . 937 139 2371 534 . Guns 3099 | . 800 78 1825 396 . Cannons . | . . . . . . Explosions 882 | . 137 61 546 138 . Melee . | . . . . . . Ramming . | . . . . . . Kinetic 10 | . 10 . . . . Thermal 561 | . 150 61 212 138 . Explosive 334 | . . . 334 . . Electromagnetic 3076 | . 777 78 1825 396 . Impact . | . . . . . . Slashing . | . . . . . . Piercing . | . . . . . . Highest Corruption . | . . . . . . Average Corruption . | . . . . . . Corruption Purged . | . . . . . . Overload Shots . | . . . . . . Overflow Damage 11 | . 4 . . 7 . Projectiles . | . . . . . . Explosions 11 | . 4 . . 7 . Melee . | . . . . . . Knockbacks . | . . . . . . Impact . | . . . . . . Kinetic . | . . . . . . Secondary . | . . . . . . Self-Inflicted Damage 73 | . 47 . 26 . . Shots 3 | . 2 . 1 . . Rammed . | . . . . . . Targets Rammed . | . . . . . . Kicked . | . . . . . . Crushed . | . . . . . . Highest Temperature 38 | . 30 2 38 . . Average Temperature 11 | . 12 2 11 . . Received Heat Transfer 422 | . 108 140 150 24 . Siege Activations . | . . . . . . Robots Corrupted 1 | . . . 1 . . Combat Hostiles 1 | . . . 1 . . Parts Fried 26 | . 5 . 17 4 . Impact Corruptions . | . . . . . . Robots Melted . | . . . . . . Combat Hostiles . | . . . . . . Parts Melted 1 | . 1 . . . . Heat Transferred 837 | . 187 150 300 200 . Parts Sabotaged . | . . . . . . Parts Stolen . | . . . . . . Parts Stripped . | . . . . . . Power Chain Reactions 9 | . 3 1 3 2 . Missiles Intercepted . | . . . . . . Alert | -11 -10 -10 -9 -9 -9 ------- Run | Scr Mat Min Mat Min Exi Peak Influence 686 | . 531 230 686 397 . Average Influence 285 | . 222 168 345 349 . Maximum Alert Level 2 | . 2 1 2 1 . Low Security (%) 39 | 100 52 89 26 . . Level 1 39 | . 32 10 37 100 . Level 2 20 | . 14 . 36 . . Level 3 . | . . . . . . Level 4 . | . . . . . . Level 5 . | . . . . . . High Security . | . . . . . . Max Security . | . . . . . . Squads Dispatched 5 | . 3 . 1 1 . Investigation 4 | . 2 . 1 1 . Extermination . | . . . . . . Reinforcement 1 | . 1 . . . . Assault . | . . . . . . Garrison . | . . . . . . Intercept . | . . . . . . Construction Impeded . | . . . . . . Haulers Reinforced . | . . . . . . Stealth | -11 -10 -10 -9 -9 -9 --------- Run | Scr Mat Min Mat Min Exi Distress Signals 2 | . . . 2 . . Communications Jammed . | . . . . . . Distress Signals . | . . . . . . Times Spotted 80 | . 21 17 35 7 . Peak Tracking Total 9 | . 3 9 4 4 . Tactical Retreats 1 | . 1 . . . . Traps | -11 -10 -10 -9 -9 -9 ------- Run | Scr Mat Min Mat Min Exi Traps Triggered 2 | . 1 . 1 . . Indirectly . | . . . . . . Trap Hack Attempts . | . . . . . . Triggered . | . . . . . . Disarmed . | . . . . . . Reprogrammed . | . . . . . . Reused . | . . . . . . Traps Extracted . | . . . . . . Installed . | . . . . . . Triggered . | . . . . . . Machines | -11 -10 -10 -9 -9 -9 ---------- Run | Scr Mat Min Mat Min Exi Machines Disabled 4 | . 2 . 2 . . Max in Single Turn 1 | . 1 . 1 . . Machines Sabotaged . | . . . . . . Garrisons Compromised . | . . . . . . Overloaded Fab Kills . | . . . . . . Fab Network Shutdowns . | . . . . . . Hacking | -11 -10 -10 -9 -9 -9 --------- Run | Scr Mat Min Mat Min Exi Machines Accessed 17 | . 5 . 11 1 . Terminals 14 | . 4 . 10 . . Fabricators . | . . . . . . Repair Stations . | . . . . . . Recycling Units 2 | . 1 . 1 . . Scanalyzers . | . . . . . . Garrison Access . | . . . . . . Total Hacks 50 | . 14 . 35 1 . Successful 34 | . 9 . 24 1 . Failed 16 | . 5 . 11 . . Catastrophic 3 | . 1 . 2 . . Database Lockouts . | . . . . . . Manual 42 | . 12 . 30 . . Terminals 45 | . 12 . 33 . . Fabricators . | . . . . . . Repair Stations . | . . . . . . Recycling Units 4 | . 2 . 2 . . Scanalyzers . | . . . . . . Garrison Access . | . . . . . . Terminal Hacks 19 | . 5 . 13 1 . Open Door 1 | . . . . 1 . Terminal Index 1 | . . . 1 . . Alert Level 6 | . 2 . 4 . . Unreport Threat 2 | . . . 2 . . Dispatch Records 1 | . . . 1 . . Hauler Manifests 1 | . . . 1 . . Zone Layout 7 | . 3 . 4 . . Fabricator Hacks . | . . . . . . Repair Station Hacks . | . . . . . . Recycling Unit Hacks 2 | . 1 . 1 . . Retrieve Components 2 | . 1 . 1 . . Scanalyzer . | . . . . . . Garrison Access Hacks . | . . . . . . Unauthorized Hacks 32 | . 10 . 22 . . Terminals 12 | . 2 . 10 . . Assimilate 1 | . . . 1 . . Botnet 11 | . 2 . 9 . . Fabricators . | . . . . . . Repair Stations . | . . . . . . Recycling Units 1 | . 1 . . . . Tunnel 1 | . 1 . . . . Scanalyzers . | . . . . . . Garrison Access . | . . . . . . Data Cores Recovered 1 | . . . 1 . . Used 1 | . . . 1 . . Hacking Detections 12 | . 4 . 8 . . Full Trace Events . | . . . . . . Feedback Events . | . . . . . . Feedback Blocked . | . . . . . . Robot Schematics Acquired . | . . . . . . Robots Built . | . . . . . . Matter . | . . . . . . Time . | . . . . . . Total Robot Build Rating . | . . . . . . Part Schematics Acquired . | . . . . . . Parts Built . | . . . . . . Matter . | . . . . . . Time . | . . . . . . Total Part Build Rating . | . . . . . . Parts Repaired . | . . . . . . Time . | . . . . . . Parts Recycled . | . . . . . . Recycled Matter . | . . . . . . Retrieved Matter . | . . . . . . Retrieved Components 15 | . 5 . 10 . . Parts Scanalyzed . | . . . . . . Part Schematics Acquired . | . . . . . . Parts Damaged . | . . . . . . Bothacking | -11 -10 -10 -9 -9 -9 ------------ Run | Scr Mat Min Mat Min Exi Used RIF Installer . | . . . . . . Robots Hacked . | . . . . . . Non-combat . | . . . . . . Combat . | . . . . . . Robot Hacks Applied . | . . . . . . Relay Couplers Released . | . . . . . . Robots Rewired . | . . . . . . Allies Hacked . | . . . . . . Hacks Repelled . | . . . . . . Allies | -11 -10 -10 -9 -9 -9 -------- Run | Scr Mat Min Mat Min Exi Total Allies 1 | . . . 1 . . Largest Group 1 | . . . 1 . . Highest-Rated Group 10 | . . . 10 . . Highest-Rated Ally 10 | . . . 10 . . Total Orders 1 | . . . 1 . . GOTO 1 | . . . 1 . . Ally Attacks . | . . . . . . Total Damage . | . . . . . . Kills . | . . . . . . Allies Corrupted . | . . . . . . Allies Melted . | . . . . . . Intel | -11 -10 -10 -9 -9 -9 ------- Run | Scr Mat Min Mat Min Exi Robot Analysis Total . | . . . . . . Derelict Logs Recovered 2 | . . 1 . 1 . Drone Launches . | . . . . . . Drone Recoveries . | . . . . . . Exploration | -11 -10 -10 -9 -9 -9 ------------- Run | Scr Mat Min Mat Min Exi Turns Passed 1641 | 18 434 209 751 200 29 Spaces Moved 2697 | 26 548 377 1187 462 97 Core 166 | 26 140 . . . . Treads . | . . . . . . Legs . | . . . . . . Wheels . | . . . . . . Hover . | . . . . . . Flight 2531 | . 408 377 1187 462 97 Fastest Speed 29 | 50 37 37 29 29 29 Average Speed 33 | 50 40 37 30 29 29 Slowest Speed 50 | 50 50 37 37 29 29 Overloaded Moves . | . . . . . . Propulsion Burnouts . | . . . . . . Robots Hopped 34 | . 6 13 11 4 . Cave-ins Triggered . | . . . . . . Exploration Rate (%) 65 | 4 93 74 95 88 39 Regions Visited 5 Branch Regions 3 Pre-discovered Areas 2 | . 1 . . 1 . Known Exits Taken 2 | . . . 1 1 . Unknown Exits Taken 3 | 1 1 1 . . . Scrap Searched 2 | . . 1 . 1 . Spaces Dug . | . . . . . . Terrain Destroyed 102 | . 52 3 37 10 . Melee . | . . . . . . Projectile . | . . . . . . AOE 102 | . 52 3 37 10 . Actions | -11 -10 -10 -9 -9 -9 --------- Run | Scr Mat Min Mat Min Exi Total 3136 | 28 667 420 1422 502 97 Wait 228 | . 57 46 97 28 . Move 2627 | 25 535 353 1164 453 97 Hop 31 | . 6 10 11 4 . Pick Up 9 | . 1 . 6 2 . Fast Attach 26 | 3 8 . 15 . . Attach . | . . . . . . Detach . | . . . . . . Swap 7 | . 1 . 6 . . Drop 22 | . 3 . 17 2 . Fire 124 | . 42 6 66 10 . Melee . | . . . . . . Ram . | . . . . . . Kick . | . . . . . . Crush . | . . . . . . Escape Stasis . | . . . . . . Rewire . | . . . . . . Trap . | . . . . . . Miscellaneous 62 | . 14 5 40 3 . Route ------- -11/Scrapyard -10/Materials (discovered 5 exits: *Mat x3 / [*Min x2]) -10/Mines (discovered 2 exits: *Mat x2) -9/Materials (discovered 5 exits: *Mat x3 / *Min x2) -9/Mines (discovered 3 exits: *Mat x2 / *Exi) -9/Exiles History --------- Turn | Location | Event 1 | -11/Scrapyard | Upgraded with Propulsion slot (x1) 1 | -11/Scrapyard | Upgraded with Utility slot (x2) 1 | -11/Scrapyard | Upgraded with Weapon slot (x1) 7 | -11/Scrapyard | Discovered new exit (range 16) 19 | -11/Scrapyard | Entered Materials 66 | -10/Materials | Discovered new exit (range 16) 169 | -10/Materials | Discovered new exit (range 16) 280 | -10/Materials | Discovered new exit (range 11) 315 | -10/Materials | Build established: Mutant 325 | -10/Materials | Reached level 2 331 | -10/Materials | Upgraded with Utility slot (x1) 413 | -10/Materials | Discovered new exit (range 16) 444 | -10/Materials | Discovered new exit (range 15) 453 | -10/Materials | Entered Mines 482 | -10/Mines | Discovered new exit (range 5) 576 | -10/Mines | Learned Materials emergency access door positions 589 | -10/Mines | Discovered new exit (range 15) 590 | -10/Mines | Assembled infested the area 662 | -10/Mines | Core integrity fell below 50% 662 | -10/Mines | Entered Materials 663 | -9/Materials | Core integrity fell below 50% 664 | -9/Materials | Reached level 3 665 | -9/Materials | Upgraded with Propulsion slot (x1) 665 | -9/Materials | Upgraded with Weapon slot (x1) 686 | -9/Materials | Reached level 4 716 | -9/Materials | Upgraded with Utility slot (x1) 903 | -9/Materials | Discovered new exit (range 4) 971 | -9/Materials | Reached level 5 1026 | -9/Materials | Discovered new exit (range 7) 1028 | -9/Materials | Destroyed 7 combat bots 1059 | -9/Materials | Build established: Sprinter 1083 | -9/Materials | Discovered new exit (range 12) 1128 | -9/Materials | Discovered new exit (range 18) 1175 | -9/Materials | Reached level 6 1343 | -9/Materials | Identified exit to Mines 1356 | -9/Materials | Discovered new exit (range 20) 1413 | -9/Materials | Entered Mines 1415 | -9/Mines | Reached level 7 1415 | -9/Mines | Upgraded with Utility slot (x1) 1419 | -9/Mines | Met a Derelict shopkeep closing up shop 1468 | -9/Mines | Discovered new exit (range 9) 1475 | -9/Mines | Identified exit to Materials 1578 | -9/Mines | Discovered exit to Materials (range 14) 1596 | -9/Mines | Learned location of Zion (-7) 1612 | -9/Mines | Deemed a non-threat by the Exiles lab entrance 1612 | -9/Mines | Discovered new exit (range 5) 1612 | -9/Mines | Identified exit to Exiles 1613 | -9/Mines | Entered Exiles 1613 | -9/Exiles | Found Exiles lab abandoned 1642 | -9/Exiles | Self-destructed Last Messages --------------- 01553_ K-01 Serf collects debris. 01554_ U-05 Engineer builds a Wall. 01564_ U-05 Engineer lays Concrete. 01565_ K-01 Serf collects debris. 01566_ U-05 Engineer lays Concrete. 01569_ K-01 Serf collects debris. 01578_ EXIT=FOUND: MATERIALS 01596_ Acquired derelict log, extracted data. World map updated: -7/Zion. 01597_ Searching scrap... 01597_ Found 47 Matter. 01597_ Found Hvy. EM Pulse Gun. 01597_ Found Hcp. Matter Pod. 01597_ Found Shotgun. 01597_ Found Wheel. 01612_ "No threat detected, you may enter." 01612_ EXIT=FOUND 01612_ EXIT=IDENTIFIED: EXILES LOCATION=EXILES GOAL=ESCAPE Map ----- +----------------------------------------------------+ | | | | | | | | | | | | | | | | | | | | | | | | | | | | | ??????????????????????#######????????????????????? | | ?????????????????????# #???????????????????? | | ?????????????????????# #???????????????????? | | ?????????????????????? ????????????????????? | | ?????????????????????? X????????????????????? | | ?????????????????????## #????????????????????? | | ??????????????????????X #????????????????????? | | ??????????????????????# #????????????????????? | | ??????????????????????# #????????????????????? | | ??????????????????????# #???###??????????????? | | ??????????????????????# #??"""""?????????????? | | ??????????????????????# @ ## """?????????????? | | ??????????????????????# X""?????????????? | | ??????????????????????# ## """?????????????? | | ????????????????####??# #???""""?????????????? | | ????????????????"""""?# #????????????????????? | | ???????????????"""" ## #????????????????????? | | ??????????????#""X" #????????????????????? | | ??????????????#" #????????????????????? | | ??????????????#" ## #????????????????????? | | ??????????????#""""""?# #????????????????????? | | ???????????????#"###??# #????????????????????? | | ??????????????????????# #???""""?????????????? | | ??????????????????????# #??"""""?????????????? | | ?????????????????????## ###"" """????????????? | | ?????????????????????#" """"???????????? | | ?????????????????????#" """???????????? | | ?????????????????????#" """???????????? | | ?????????????????????#" """???????????? | | ?????????????????????#" """???????????? | | ?????????????????????#" """???????????? | | ?????????????????????## """???????????? | | ??????????????????????# """???????????? | | ??????????????????????#" "X" """???????????? | | ??????????????????????#" """ ????????????? | | ??????????????????????#" """""""""???????????? | +----------------------------------------------------+ Best States ------------- Heat Dissipation 87 Energy Generation 19 Energy Capacity 380 Matter Stores 300 Matter Capacity 300 Sight Range 16 Terrain Scan Density 10 Evasion (%) 64 Targeting Accuracy 22 Item Schematics ----------------- None Robot Schematics ------------------ None Fabricated ------------ Nothing Alien Tech Used ----------------- None Achievements -------------- None Challenges ------------ None RPGLIKE | -11 -10 -10 -9 -9 -9 --------- Run | Scr Mat Min Mat Min Exi Levels Raised 6 | . 1 . 4 1 . XP Earned 13071 | 3000 2217 750 5754 1150 200 XP Spent 11895 | 2970 1100 . 6125 1700 . Upgrades 23 | 9 1 . 12 1 . Propulsion Slot 2 | 1 . . 1 . . Utility Slot 5 | 2 1 . 1 1 . Weapon Slot 2 | 1 . . 1 . . Core Integrity 2 | . . . 2 . . Heat Dissipation 3 | 2 . . 1 . . Energy Generation 1 | . . . 1 . . Energy Storage 2 | . . . 2 . . Mass Support 2 | 2 . . . . . Inventory Capacity 4 | 1 . . 3 . . Protomatter Created 763 | . 140 11 480 132 . Integrity Restored 1234 | . 290 60 836 48 . Core 1033 | . 238 46 712 37 . Parts 201 | . 52 14 124 11 . Protomatter Decayed 237 | . 30 7 111 89 . Game ------ Seed BackupSmallTreads Manual? 0 Play Time 00:25:46 Cumulative 970.0 hours Start 2019.12.17 @ 18:48:49 End 2019.12.17 @ 19:15:34 Sessions 1 Manual Loads 0 Difficulty Rogue Special Mode Winter2019/RPGLIKE Game No. 308 Rogue 308 Adventurer 0 Explorer 0 Win Type - Total 70 Types 14/6/32/3/1/2/12 Lore% 97 Gallery% 95 Achievement% 82 Wizard Run 0 Options --------- ASCII 0 Keyboard 0 Movement Numpad Keybinds 0 Fullscreen 1 Font 18/SmallcapsGlow Map View 76x50 Tactical HUD 1 Map Filters NONE Filters NONE Steam 1 RUN: 5f4b3d23-9ec5-4ac1-8ab9-b98da49899e1